Cogmind - Beta 13 @@@ ROGUE MODE // 2024.05.02 @ 15:55:08 Player: GayPredator Result: Destroyed by D-53 Grenadier with Mini Grenade Launcher Performance ------------- Evolutions (0) 0 Regions Visited (2) 400 Robots Destroyed (16) 80 Value Destroyed (256) 256 Prototype IDs (2) 40 Alien Tech Used (0) 0 Bonus (0) 0 TOTAL SCORE: 776 Bonus ------- None Cogmind --------- Core Integrity 0/250 Matter 201/300 Energy 99/100 System Corruption 0% Temperature Cool (0) Movement Core (50) Location -10/Mines Parts ------- > --- POWER (1) -------- (None) > --- PROPULSION (2) --- (None) > --- UTILITY (2) ------ (None) > --- WEAPON (2) ------- (None) > --- INVENTORY (5) ---- Light Ion Engine Wheel Light Assault Rifle Grenade Launcher Mining Laser Peak State ------------ > --- POWER ------------ Ion Engine > --- PROPULSION ------- Wheel Wheel > --- UTILITY ---------- Medium Storage Unit Improved Terrain Scanner > --- WEAPON ----------- Assault Rifle Rocket Launcher > --- INVENTORY -------- Light Ion Engine Wheel Seismic Detector Medium Laser Light Assault Rifle Grenade Launcher Mining Laser [Rating: 10] Favorites ----------- Power Ion Engine Engine Ion Engine Propulsion Wheel Wheel Wheel Utility Medium Storage Unit Device Seismic Detector Storage Medium Storage Unit Protection Weapon Shielding Weapon Assault Rifle Energy Gun Medium Laser Ballistic Gun Assault Rifle Launcher Rocket Launcher Special Weapon Mining Laser Build | -11 -10 -10 ------- Run | Yrd Mat Min Slots Evolved . | . . . Power . | . . . Propulsion . | . . . Utility . | . . . Weapon . | . . . Parts Attached 21 | 8 8 5 Power 2 | 1 1 . Engine 2 | 1 1 . Core . | . . . Reactor . | . . . Propulsion 4 | 3 1 . Treads . | . . . Leg . | . . . Wheel 4 | 3 1 . Hover . | . . . Flight . | . . . Utility 5 | 2 1 2 Device 2 | 1 . 1 Storage 2 | 1 1 . Processor . | . . . Hackware . | . . . Protection 1 | . . 1 Artifact . | . . . Weapon 10 | 2 5 3 Energy Gun 3 | 1 1 1 Energy Cannon . | . . . Ballistic Gun 4 | 1 2 1 Ballistic Cannon . | . . . Launcher 1 | . . 1 Special Weapon 2 | . 2 . Impact Weapon . | . . . Slashing Weapon . | . . . Piercing Weapon . | . . . Special Melee Weapon . | . . . Unidentified Prototypes . | . . . Parts Lost 7 | . 1 6 Power 1 | . . 1 Propulsion 2 | . . 2 Utility 1 | . . 1 Weapon 3 | . 1 2 Highest Loss Streak 6 | . 1 6 To Critical Strikes . | . . . Average Slot Usage (%) 98 | . 97 100 Engine 14 | . 14 14 Wheel 28 | . 28 28 Device 6 | . 14 . Storage 14 | . 14 14 Protection 7 | . . 14 Energy Gun 8 | . 12 3 Ballistic Gun 13 | . 12 14 Launcher 5 | . . 10 Naked Turns 1 | . . 1 Heaviest Build 22 | 15 20 22 Greatest Support 26 | 26 20 20 Greatest Overweight (x) 1 | . . 1 Average Overweight (x) . | . . . Largest Inventory Capacity 10 | 8 10 10 Average Capacity 9 | 7 9 9 Most Carried 8 | 5 7 8 Average Carried 6 | 3 5 7 Final Capacity 10 | 8 10 5 Final Carried 7 | 5 7 5 Class Distribution -------------------- 100% | Mutant Dominant Class ---------------- Mutant | -10/Materials Mutant | -10/Mines Resources | -11 -10 -10 ----------- Run | Yrd Mat Min Matter Collected 457 | 289 87 81 Remotely . | . . . Salvage Created 303 | 72 110 121 Parts 36 | 12 12 12 Haulers Intercepted . | . . . Recyclers Shooed 1 | . 1 . Parts Field Recycled . | . . . Retrieved Matter . | . . . Parts Self-Destructed . | . . . Prevented . | . . . Kills | -11 -10 -10 ------- Run | Yrd Mat Min Combat Hostiles Destroyed 11 | . 5 6 Guns 7 | . 5 2 AOE 4 | . . 4 Classes Destroyed 6 | 1 2 3 Worker 1 | . . 1 Builder 1 | . . 1 Tunneler 4 | 4 . . Swarmer 6 | . 3 3 Grunt 4 | . 2 2 Assembled 1 | . . 1 Best Kill Streak 5 | 3 5 5 Combat Bots Only 5 | . 5 3 Max Kills in Single Turn 2 | 1 1 2 Gunslinging . | . . . Exploded 2 | . . 2 Melee . | . . . Uniques/NPCs Destroyed . | . . . Combat | -11 -10 -10 -------- Run | Yrd Mat Min Hostile Shots Fired 63 | . 28 35 Missed 12 | . 7 5 Damage Taken 879 | . 257 622 Core 252 | . 41 211 Absorbed by Shields . | . . . Redirected to Shielding 50 | . . 50 Regen/Repaired (Parts) 74 | . 74 . Core Remaining (%) 100 | 100 . . Volleys Fired 50 | 11 22 17 Largest 2 | 2 2 2 Hottest 100 | 70 100 70 Shots Fired 91 | 22 41 28 Gun 83 | 22 38 23 Cannon . | . . . Launcher 5 | . . 5 Special 3 | . 3 . Kinetic 42 | 11 19 12 Thermal 44 | 11 22 11 Explosive 5 | . . 5 Electromagnetic . | . . . Robot Hit Streak 8 | 7 5 8 Robot Miss Streak 4 | 2 4 3 Penetration Max . | . . . Secondary Targets 2 | . 2 . Max Gunslinging Chain 1 | . 1 . Shots Hit Robots 51 | 14 19 18 Core Hits 30 | 4 10 16 Critical Kills 1 | 1 . . Critical Parts Destroyed . | . . . Critical Strikes 4 | 2 1 1 Burn 3 | 1 1 1 Destroy 1 | 1 . . Melee Attacks . | . . . Impact . | . . . Slashing . | . . . Piercing . | . . . Sneak Attacks . | . . . Combat Hostiles . | . . . Follow-up Attacks . | . . . Damage Inflicted 1106 | 173 282 651 Guns 650 | 173 258 219 Cannons . | . . . Explosions 432 | . . 432 Melee . | . . . Ramming . | . . . Kinetic 352 | 86 134 132 Thermal 322 | 87 148 87 Explosive 432 | . . 432 Electromagnetic . | . . . Impact . | . . . Slashing . | . . . Piercing . | . . . Highest Corruption . | . . . Average Corruption . | . . . Corruption Purged . | . . . Corruption Blocked . | . . . Overload Shots . | . . . Overflow Damage 24 | . . 24 Projectiles . | . . . Explosions 24 | . . 24 Melee . | . . . Knockbacks . | . . . Impact . | . . . Kinetic . | . . . Secondary . | . . . Self-Inflicted Damage . | . . . Shots . | . . . Rammed . | . . . Targets Rammed . | . . . Kicked . | . . . Crushed . | . . . Highest Temperature 238 | 63 238 192 Average Temperature 73 | 24 85 91 Received Heat Transfer 294 | . 132 162 Siege Activations . | . . . Robots Corrupted . | . . . Combat Hostiles . | . . . Parts Fried . | . . . Impact Corruptions . | . . . Robots Melted . | . . . Combat Hostiles . | . . . Parts Melted 1 | . . 1 Heat Transferred 1160 | 333 494 333 Parts Sabotaged . | . . . Parts Stolen . | . . . Parts Stripped . | . . . Power Chain Reactions . | . . . Alert | -11 -10 -10 ------- Run | Yrd Mat Min Peak Influence 241 | 20 207 241 Initial 80 | . 13 80 Average 137 | 8 147 180 Maximum Alert Level 1 | . 1 1 Low Security (%) 68 | 100 79 46 Level 1 31 | . 20 53 Level 2 . | . . . Level 3 . | . . . Level 4 . | . . . Level 5 . | . . . High Security . | . . . Max Security . | . . . Squads Dispatched . | . . . Investigation . | . . . Extermination . | . . . Reinforcement . | . . . Assault . | . . . Garrison . | . . . Intercept . | . . . Searches Triggered . | . . . Construction Impeded . | . . . Haulers Reinforced . | . . . Active Scanning Responses . | . . . Cargo Convoy Interrupts . | . . . Stealth | -11 -10 -10 --------- Run | Yrd Mat Min Distress Signals 1 | . 1 . Communications Jammed . | . . . Distress Signals . | . . . Times Spotted 16 | . 9 7 Peak Tracking Total 11 | . 5 11 Tactical Retreats . | . . . Traps | -11 -10 -10 ------- Run | Yrd Mat Min Traps Triggered . | . . . Indirectly . | . . . Trap Hack Attempts . | . . . Triggered . | . . . Disarmed . | . . . Reprogrammed . | . . . Reused . | . . . Traps Extracted . | . . . Installed . | . . . Triggered . | . . . Machines | -11 -10 -10 ---------- Run | Yrd Mat Min Machines Disabled . | . . . Max in Single Turn . | . . . Machines Repaired . | . . . Machines Dismantled . | . . . Machines Sabotaged . | . . . Overloaded Fab Kills . | . . . Hacking | -11 -10 -10 --------- Run | Yrd Mat Min Machines Accessed 7 | . 7 . Terminals 5 | . 5 . Fabricators . | . . . Repair Stations 1 | . 1 . Recycling Units 1 | . 1 . Scanalyzers . | . . . Garrison Access . | . . . Total Hacks 22 | . 22 . Successful 18 | . 18 . Failed 4 | . 4 . Catastrophic . | . . . Database Lockouts . | . . . Manual 7 | . 7 . Terminals 19 | . 19 . Fabricators . | . . . Repair Stations 2 | . 2 . Recycling Units 1 | . 1 . Scanalyzers . | . . . Garrison Access . | . . . Terminal Hacks 12 | . 12 . Part Schematic 1 | . 1 . Prototype ID Bank 1 | . 1 . Branch Access Points 1 | . 1 . Terminal Index 1 | . 1 . Alert Level 1 | . 1 . Locate Traps 2 | . 2 . Dispatch Records 1 | . 1 . Maintenance Status 1 | . 1 . Registered Components 1 | . 1 . Zone Layout 2 | . 2 . Fabricator Hacks . | . . . Repair Station Hacks 2 | . 2 . Scan Component 1 | . 1 . Repair 1 | . 1 . Recycling Unit Hacks 1 | . 1 . Report Inventory 1 | . 1 . Scanalyzer . | . . . Garrison Access Hacks . | . . . Unauthorized Hacks 3 | . 3 . Terminals 3 | . 3 . Botnet 3 | . 3 . Fabricators . | . . . Repair Stations . | . . . Recycling Units . | . . . Scanalyzers . | . . . Garrison Access . | . . . Data Cores Recovered . | . . . Used . | . . . Hacking Detections 4 | . 4 . Full Trace Events . | . . . Feedback Events . | . . . Feedback Blocked . | . . . Robot Schematics Acquired . | . . . Robots Built . | . . . Authchips . | . . . Time . | . . . Total Robot Build Rating . | . . . Part Schematics Acquired 1 | . 1 . Parts Built . | . . . Authchips . | . . . Time . | . . . Total Part Build Rating . | . . . Parts Repaired 1 | . 1 . Time 26 | . 26 . Parts Recycled . | . . . Recycled Matter . | . . . Retrieved Matter . | . . . Retrieved Components . | . . . Parts Scanalyzed . | . . . Part Schematics Acquired . | . . . Parts Damaged . | . . . Bothacking | -11 -10 -10 ------------ Run | Yrd Mat Min Used RIF Installer . | . . . Robots Hacked . | . . . Non-combat . | . . . Combat . | . . . Robot Hacks Applied . | . . . Relay Couplers Released . | . . . Fabnet Peak Effective % . | . . . Robots Rewired . | . . . Allies Hacked . | . . . Hacks Repelled . | . . . Allies | -11 -10 -10 -------- Run | Yrd Mat Min Total Allies . | . . . Largest Group . | . . . Highest-Rated Group . | . . . Highest-Rated Ally . | . . . Total Orders . | . . . Ally Attacks . | . . . Total Damage . | . . . Kills . | . . . Allies Corrupted . | . . . Allies Melted . | . . . Intel | -11 -10 -10 ------- Run | Yrd Mat Min Robot Analysis Total . | . . . Derelict Logs Recovered 1 | . . 1 Drone Launches . | . . . Drone Recoveries . | . . . Exploration | -11 -10 -10 ------------- Run | Yrd Mat Min Turns Passed 684 | 116 274 294 Spaces Moved 522 | 65 197 260 Core 3 | 1 . 2 Treads . | . . . Legs . | . . . Wheels 519 | 64 197 258 Hover . | . . . Flight . | . . . Fastest Speed 50 | 50 80 50 Average Speed 86 | 87 80 91 Slowest Speed 100 | 100 80 95 Overloaded Moves . | . . . Propulsion Burnouts . | . . . Robots Hopped . | . . . Cave-ins Triggered . | . . . Exploration Rate (%) 33 | 4 42 55 Regions Visited 2 Branch Regions 1 Pre-discovered Areas . | . . . Known Exits Taken 1 | . 1 . Unknown Exits Taken 1 | 1 . . Scrap Searched . | . . . Spaces Dug 2 | . 2 . Terrain Destroyed 48 | . 2 46 Melee . | . . . Projectile 2 | . 2 . AOE 46 | . . 46 Terrain Rammed . | . . . Walls Destroyed . | . . . Machines Disabled . | . . . Actions | -11 -10 -10 --------- Run | Yrd Mat Min Total 647 | 98 264 285 Wait 43 | 9 32 2 Move 520 | 64 196 260 Hop . | . . . Pick Up 9 | 5 3 1 Fast Attach 11 | 8 3 . Attach 2 | . 1 1 Detach . | . . . Swap 8 | . 4 4 Drop 4 | 1 3 . Fire 50 | 11 22 17 Melee . | . . . Ram . | . . . Kick . | . . . Crush . | . . . Escape Stasis . | . . . Rewire . | . . . Trap . | . . . Miscellaneous . | . . . Route ------- -11/Scrapyard -10/Materials (discovered 3 exits: [*Mat] / *Min x2) -10/Mines (discovered 1 exit: [*Mat]) History --------- Turn | Location | Event 2 | -11/Scrapyard | Met Revision 17 47 | -11/Scrapyard | Discovered new exit (range 16) 117 | -11/Scrapyard | Entered Materials 261 | -10/Materials | Discovered new exit (range 16) 324 | -10/Materials | Discovered new exit (range 12) 325 | -10/Materials | Build established: Mutant 334 | -10/Materials | Discovered new exit (range 13) 334 | -10/Materials | Identified exit to Mines 373 | -10/Materials | Repaired Assault Rifle 391 | -10/Materials | Entered Mines 422 | -10/Mines | Core integrity fell below 50% 468 | -10/Mines | Received a Rocket Launcher from a helpful Derelict 534 | -10/Mines | Discovered new exit (range 15) 597 | -10/Mines | Learned Materials terminal intel 663 | -10/Mines | Assembled infested the area 668 | -10/Mines | Assisted by a Guerilla fighting off Assembled 684 | -10/Mines | Released all parts (2) 685 | -10/Mines | Destroyed by D-53 Grenadier with Mini Grenade Launcher Last Messages --------------- 00675_ K-01 Serf destroyed. 00675_ VF-GFT(h): "I'll hold them off! Go on ahead or try to find another way!" 00676_ as-91309 destroyed. 00677_ K-01 Serf collects debris. 00677_ C-30 ARC bursts open, deploying its payload. 00677_ D-53 Grenadier unfolds itself. 00677_ T-07 Excavator destroyed. 00679_ HV Slug penetrates Wall. 00680_ Weapon Shielding destroyed. 00680_ VF-GFT(h) destroyed. 00681_ Assault Rifle destroyed. 00683_ Wheel destroyed. 00683_ Rocket Launcher destroyed. 00683_ Wheel destroyed. 00683_ Ion Engine destroyed. 00684_ Released Imp. Terrain Scanner. 00684_ Released Med. Storage Unit. [Achievement: Back For More] Map ----- +----------------------------------------------------+ | ??????????????????????????????????????????????## | | ?????????????????????????????????????????????## | | ?????????????????????????????????????????##### | | ???????????????????????????????########### | | ??????????????????????????????? | | ???????????????????????######## ###### | | ???????????????? ##???## ##### | | ???????????????????????### #### % #???## ##???? | | ?????????????????????????????## ! ##??# #????? | | ????????????????????????????## * = #?# #????? | | ????????????????????????????# ## ##????? | | ????????????????????????????# ### ##?????? | | ????????????????????????????# ##?## #???????? | | ????????????????????????????# #???##????????? | | ????????????????????????????## ##????????????? | | ????????????????????????????# ##???????????? | | ???????????????????????????## #???????????? | | ?????????????????????????### #???????????? | | ?????????????????????????# % #???????????? | | ???????????????????????### #???????????? | | ???????????????????????# #???????????? | | ???????????????????????# ##???????????? | | ??????????????????????## [! r ##????????????? | | ??????????????????????# !! ##???? ????????? | | ??????????????????????# ;#?????????????? | | ?????????????????????## @ ##?????????????? | | ?????????????????????# d ##??????????????? | | ?????????????????????# d#???????????????? | | ?????????????????????## %######??????????? | | ??????????????????????## #??????????? | | ???????????????????????## ##u #??????????? | | ????????????????????????## ### #??????????? | | ?????????????????????????# #?# #########??? | | ?????????????????????????# ## #??? | | ?????????????????????????## ## #??? | | ??????????????????????????## ###### #### #### | | ???????????????????????????## ###????# #??# | | ????????????????????????????####??????# #??# #### | | ????????????????????????????????###???# #?## #??? | | ???????????????????????????????## #??# ### #??? | | ???????????????????????????????# ### ## #??# | | ###????????????????????????????# #### | | # ##???????????????????????????# < | | ##??????????????????????????##### | | ##?????????????????????????????## ### | | #?????????????????????????????## ### | | #?????????????????????????????# ###?# | | #??????????????????????????????# ##???# # | | ##????????????????????????????### ###??## ## | | #????????????? ????????????## # # ##?# #? | +----------------------------------------------------+ Best States ------------- Heat Dissipation 25 Energy Generation 10 Energy Capacity 250 Matter Stores 290 Matter Capacity 300 Sight Range 16 Terrain Scan Density 10 Weapon Shielding 33 Evasion (%) 44 Item Schematics ----------------- Wheel | -10/Materials | Hacked Robot Schematics ------------------ None Fabricated ------------ Nothing Alien Tech Used ----------------- None Achievements -------------- Back For More Challenges ------------ None Game ------ Seed ArchitectChargeLog Manual? 0 Play Time 00:15:06 Cumulative 65.4 hours Start 2024.05.02 @ 15:41:23 End 2024.05.02 @ 15:55:08 Sessions 1 Manual Loads 0 Difficulty Rogue Special Mode None Game No. 50 Rogue 11 Adventurer 32 Explorer 7 Win Type - Total 0 Types 0/0/0/0/0/0/0/0/0 Lore% 22 Gallery% 49 Achievement% 38 Wizard Run 0 Options --------- Layout 1 ASCII 0 Keyboard 0 Movement Mouse Keybinds 0 Fullscreen 1 Font 16/SmallcapsGlow Map View 50x40 Zoom Use 48% Tactical HUD 1 Map Filters NONE Filters NONE Steam SD RUN: 71b2b9eb-2a1e-4b30-95f1-de5eaa3a1bb3